fUST/lending_fUST_20250627
["ID","MTS","AMOUNT","RATE_DAILY","PERIOD"]
[368023048,1750996255073,-460.0,0.00021095,2]
[368023049,1750996255083,-151.0,0.00021095,2]
[368023050,1750996255092,-583.22,0.00021095,2]
[368023051,1750996255102,-532.07,0.00021095,2]
[368023052,1750996255112,-460.0,0.00021095,2]
[368023053,1750996255122,-460.0,0.00021095,2]
[368023054,1750996255132,-460.0,0.00021095,2]
[368023055,1750996255142,-460.0,0.00021095,2]
[368023056,1750996255152,-460.0,0.00021095,2]
[368023057,1750996255162,-629.94,0.00021095,2]
[368023058,1750996255171,-460.0,0.00021095,2]
[368023059,1750996255181,-151.0,0.00021095,2]
[368023060,1750996255191,-460.0,0.00021095,2]
[368023061,1750996255200,-460.0,0.00021095,2]
[368023062,1750996255209,-460.0,0.00021095,2]
[368023063,1750996255219,-460.0,0.00021095,2]
[368023064,1750996255228,-460.0,0.00021095,2]
[368023065,1750996255237,-460.0,0.00021095,2]
[368023066,1750996255247,-1114.1,0.00021095,2]
[368023067,1750996255257,-460.0,0.00021095,2]
[368023068,1750996255266,-460.0,0.00021095,2]
[368023069,1750996255276,-460.0,0.00021095,2]
[368023070,1750996255285,-460.0,0.00021095,2]
[368023071,1750996255295,-862.68,0.00021095,2]
[368023072,1750996255304,-151.0,0.00021095,2]
[368023073,1750996255313,-460.0,0.00021095,2]
[368023074,1750996255323,-151.0,0.00021095,2]
[368023075,1750996255332,-151.0,0.00021095,2]
[368023076,1750996255341,-151.0,0.00021095,2]
[368023077,1750996255351,-460.0,0.00021095,2]
[368023078,1750996255361,-460.0,0.00021095,2]
[368023079,1750996255370,-460.0,0.00021095,2]
[368023080,1750996255379,-460.0,0.00021095,2]
[368023081,1750996255388,-832.18,0.00021095,2]
[368023082,1750996255398,-745.34,0.00021095,2]
[368023083,1750996255407,-1599.49,0.00021095,2]
[368023084,1750996255416,-460.0,0.00021095,2]
[368023085,1750996255425,-460.0,0.00021095,2]
[368023086,1750996255435,-606.6,0.00021095,2]
[368023087,1750996255445,-460.0,0.00021095,2]
[368023088,1750996255454,-460.0,0.00021095,2]
[368023089,1750996255464,-1743.41,0.00021095,2]
[368023090,1750996255474,-1732.43,0.00021095,2]
[368023091,1750996255483,-1592.32,0.00021095,2]
[368023092,1750996255493,-603.18,0.00021095,2]
[368023093,1750996255502,-926.69,0.00021095,2]
[368023094,1750996255511,-581.04,0.00021095,2]
[368023095,1750996255520,-2615.58,0.00021095,2]
[368023096,1750996255530,-460.0,0.00021095,2]
[368023097,1750996255538,-460.0,0.00021095,2]
[368023098,1750996255548,-460.0,0.00021095,2]
[368023099,1750996255557,-541.92,0.00021095,2]
[368023100,1750996255566,-460.0,0.00021095,2]
[368023101,1750996255575,-460.0,0.00021095,2]
[368023102,1750996255584,-1580.01,0.00021095,2]
[368023103,1750996255593,-460.0,0.00021095,2]
[368023104,1750996255602,-948.51,0.00021095,2]
[368023105,1750996255611,-525.844389,0.00021095,2]
[368023106,1750996255621,-525.844389,0.00021095,2]
[368023107,1750996255631,-460.0,0.00021095,2]
[368023108,1750996255640,-582.06,0.00021095,2]
[368023109,1750996255650,-1243.88,0.00021095,2]
[368023110,1750996255659,-848.57,0.00021095,2]
[368023111,1750996255668,-460.0,0.00021095,2]
[368023112,1750996255678,-460.0,0.00021095,2]
[368023113,1750996255687,-494.07,0.00021095,2]
[368023114,1750996255696,-564.61,0.00021095,2]
[368023115,1750996255706,-460.0,0.00021095,2]
[368023116,1750996255715,-853.37,0.00021095,2]
[368023117,1750996255724,-764.25,0.00021095,2]
[368023118,1750996255735,-751.98,0.00021095,2]
[368023119,1750996255746,-460.0,0.00021095,2]
[368023120,1750996255757,-460.0,0.00021095,2]
[368023121,1750996255767,-2021.67,0.00021095,2]
[368023122,1750996255776,-565.92,0.00021095,2]
[368023123,1750996255786,-2017.54,0.00021095,2]
[368023124,1750996255796,-555.33,0.00021095,2]
[368023125,1750996255805,-460.0,0.00021095,2]
[368023126,1750996255814,-555.65,0.00021095,2]
[368023127,1750996255824,-460.0,0.00021095,2]
[368023128,1750996255834,-509.14,0.00021095,2]
[368023129,1750996255844,-460.0,0.00021095,2]
[368023130,1750996255853,-151.0,0.00021095,2]
[368023131,1750996255862,-460.0,0.00021095,2]
[368023132,1750996255871,-460.0,0.00021095,2]
[368023133,1750996255881,-2341.34,0.00021095,2]
[368023134,1750996255890,-460.0,0.00021095,2]
[368023135,1750996255900,-460.0,0.00021095,2]
[368023136,1750996255910,-771.04,0.00021095,2]
[368023137,1750996255919,-460.0,0.00021095,2]
[368023138,1750996255928,-460.0,0.00021095,2]
[368023139,1750996255937,-906.39,0.00021095,2]
[368023140,1750996255947,-804.9,0.00021095,2]
[368023141,1750996256049,-460.0,0.00021095,2]
[368023142,1750996256059,-1327.84,0.00021095,2]
[368023143,1750996256069,-4263.33,0.00021095,2]
[368023144,1750996256079,-460.0,0.00021095,2]
[368023145,1750996256088,-460.0,0.00021095,2]
[368023146,1750996256098,-2077.85,0.00021095,2]
[368023147,1750996256109,-460.0,0.00021095,2]
[368023148,1750996256119,-874.94,0.00021095,2]
[368023149,1750996256130,-460.0,0.00021095,2]
[368023150,1750996256140,-689.65,0.00021095,2]
[368023151,1750996256151,-460.0,0.00021095,2]
[368023152,1750996256160,-2347.23,0.00021095,2]
[368023153,1750996256169,-5000.0,0.00021104,2]
[368023154,1750996256180,-6760.62937336,0.00021141,4]
[368023155,1750996256189,-153.0,0.00021178,2]
[368023156,1750996256199,-153.0,0.00021178,2]
[368023157,1750996256208,-153.0,0.00021178,2]
[368023158,1750996256218,-151.0,0.000212,3]
[368023159,1750996256227,-865.535,0.00021282,2]
[368023160,1750996256237,-151.0,0.00021282,2]
[368023161,1750996256246,-178.05632017,0.00021282,2]
[368023162,1750996256256,-151.0,0.00021293,2]
[368023163,1750996256265,-151.0,0.00021293,2]
[368023164,1750996256275,-966.0,0.00021293,2]
[368023165,1750996256284,-2161.0,0.00021293,2]
[368023166,1750996256293,-654.0,0.00021293,2]
[368023167,1750996256303,-410.338,0.00021293,2]
[368023168,1750996256312,-159.2394861,0.00021306,2]
[368023169,1750996256322,-153.0,0.00021306,2]
[368023170,1750996256331,-575.118961,0.00021306,2]
[368023171,1750996256340,-153.0,0.00021306,2]
[368023172,1750996256349,-153.0,0.00021306,2]
[368023173,1750996256359,-153.0,0.00021306,2]
[368023174,1750996256368,-153.0,0.00021306,2]
[368023175,1750996256377,-212.3420997,0.00021306,2]
[368023176,1750996256387,-153.0,0.00021306,2]
[368023177,1750996256396,-159.2154015,0.00021306,2]
[368023178,1750996256405,-154.4082959,0.00021306,2]
[368023179,1750996256414,-153.0,0.00021306,2]
[368023180,1750996256423,-153.0,0.00021306,2]
[368023181,1750996256432,-153.0,0.00021306,2]
[368023182,1750996256442,-153.0,0.00021306,2]
[368023183,1750996256451,-153.0,0.00021306,2]
[368023184,1750996256461,-151.0,0.00021348,2]
[368023185,1750996256470,-151.0,0.00021348,2]
[368023186,1750996256480,-151.0,0.00021348,2]
[368023187,1750996256489,-151.0,0.00021348,2]
[368023188,1750996256499,-6760.62937336,0.00021348,5]
[368023189,1750996256509,-460.0,0.00021369,2]
[368023190,1750996256519,-151.0,0.00021369,2]
[368023191,1750996256528,-151.0,0.00021369,2]
[368023192,1750996256537,-153.022282,0.00021369,2]
[368023193,1750996256547,-151.0,0.00021369,2]
[368023194,1750996256556,-151.0,0.00021369,2]
[368023195,1750996256566,-583.22,0.00021369,2]
[368023196,1750996256575,-532.07,0.00021369,2]
[368023197,1750996256584,-460.0,0.00021369,2]
[368023198,1750996256593,-460.0,0.00021369,2]
[368023199,1750996256602,-460.0,0.00021369,2]
[368023200,1750996256611,-151.0,0.00021369,2]
[368023201,1750996256621,-151.0,0.00021369,2]
[368023202,1750996256632,-578.16041718,0.00021369,2]
[368023203,1750996256641,-460.0,0.00021369,2]
[368023204,1750996256649,-629.94,0.00021369,2]
[368023205,1750996256659,-460.0,0.00021369,2]
[368023206,1750996256668,-460.0,0.00021369,2]
[368023207,1750996256677,-460.0,0.00021369,2]
[368023208,1750996256687,-460.0,0.00021369,2]
[368023209,1750996256695,-300.64800554,0.00021369,2]
[368023210,1750996256704,-460.0,0.00021369,2]
[368023211,1750996256714,-460.0,0.00021369,2]
[368023212,1750996256722,-1114.1,0.00021369,2]
[368023213,1750996256731,-460.0,0.00021369,2]
[368023214,1750996256740,-151.0,0.00021369,2]
[368023215,1750996256750,-151.0,0.00021369,2]
[368023216,1750996256761,-460.0,0.00021369,2]
[368023217,1750996256770,-215.015046,0.00021369,2]
[368023218,1750996256779,-460.0,0.00021369,2]
[368023219,1750996256788,-460.0,0.00021369,2]
[368023220,1750996256797,-862.68,0.00021369,2]
[368023221,1750996256806,-208.480772,0.00021369,2]
[368023222,1750996256816,-460.0,0.00021369,2]
[368023223,1750996256825,-208.480772,0.00021369,2]
[368023224,1750996256834,-460.0,0.00021369,2]
[368023225,1750996256843,-460.0,0.00021369,2]
[368023226,1750996256853,-460.0,0.00021369,2]
[368023227,1750996256862,-460.0,0.00021369,2]
[368023228,1750996256871,-832.18,0.00021369,2]
[368023229,1750996256880,-745.34,0.00021369,2]
[368023230,1750996256889,-1599.49,0.00021369,2]
[368023231,1750996256904,-368.67298602,0.00021369,2]
[368023232,1750996256922,-460.0,0.00021369,2]
[368023233,1750996256935,-606.6,0.00021369,2]
[368023234,1750996256952,-460.0,0.00021369,2]
[368023235,1750996256967,-460.0,0.00021369,2]
[368023236,1750996256983,-1743.41,0.00021369,2]
[368023237,1750996256999,-1732.43,0.00021369,2]
[368023238,1750996257011,-1592.32,0.00021369,2]
[368023239,1750996257026,-926.69,0.00021369,2]
[368023240,1750996257041,-581.04,0.00021369,2]
[368023241,1750996257057,-2615.58,0.00021369,2]
[368023242,1750996257073,-519.86919444,0.00021369,2]
[368023243,1750996257088,-460.0,0.00021369,2]
[368023244,1750996257104,-460.0,0.00021369,2]
[368023245,1750996257119,-541.92,0.00021369,2]
[368023246,1750996257134,-1049.88191,0.00021369,2]
[368023247,1750996257148,-1049.88191,0.00021369,2]
[368023248,1750996257162,-460.0,0.00021369,2]
[368023249,1750996257178,-460.0,0.00021369,2]
[368023250,1750996257192,-1580.01,0.00021369,2]
[368023251,1750996257204,-460.0,0.00021369,2]
[368023252,1750996257218,-948.51,0.00021369,2]
[368023253,1750996257233,-460.0,0.00021369,2]
[368023254,1750996257245,-582.06,0.00021369,2]
[368023255,1750996257256,-1243.88,0.00021369,2]
[368023256,1750996257271,-848.57,0.00021369,2]
[368023257,1750996257283,-460.0,0.00021369,2]
[368023258,1750996257294,-460.0,0.00021369,2]
[368023259,1750996257308,-494.07,0.00021369,2]
[368023260,1750996257320,-564.61,0.00021369,2]
[368023261,1750996257333,-460.0,0.00021369,2]
[368023262,1750996257345,-853.37,0.00021369,2]
[368023263,1750996257358,-764.25,0.00021369,2]
[368023264,1750996257370,-151.0,0.00021369,2]
[368023265,1750996257383,-751.98,0.00021369,2]
[368023266,1750996257395,-460.0,0.00021369,2]
[368023267,1750996257408,-460.0,0.00021369,2]
[368023268,1750996257420,-2021.67,0.00021369,2]
[368023269,1750996257433,-565.92,0.00021369,2]
[368023270,1750996257445,-2017.54,0.00021369,2]
[368023271,1750996257457,-555.33,0.00021369,2]
[368023272,1750996257469,-460.0,0.00021369,2]
[368023273,1750996257481,-151.0,0.00021369,2]
[368023274,1750996257494,-151.0,0.00021369,2]
[368023275,1750996257506,-555.65,0.00021369,2]
[368023276,1750996257518,-460.0,0.00021369,2]
[368023277,1750996257530,-151.0,0.00021369,2]
[368023278,1750996257542,-460.0,0.00021369,2]
[368023279,1750996257554,-460.0,0.00021369,2]
[368023280,1750996257567,-460.0,0.00021369,2]
[368023281,1750996257579,-2341.34,0.00021369,2]
[368023282,1750996257591,-460.0,0.00021369,2]
[368023283,1750996257603,-460.0,0.00021369,2]
[368023284,1750996257615,-771.04,0.00021369,2]
[368023285,1750996257627,-460.0,0.00021369,2]
[368023286,1750996257639,-460.0,0.00021369,2]
[368023287,1750996257651,-906.39,0.00021369,2]
[368023288,1750996257664,-804.9,0.00021369,2]
[368023289,1750996257676,-1327.84,0.00021369,2]
[368023290,1750996257688,-4263.33,0.00021369,2]
[368023291,1750996257701,-460.0,0.00021369,2]
[368023292,1750996257712,-460.0,0.00021369,2]
[368023293,1750996257724,-2077.85,0.00021369,2]
[368023294,1750996257736,-460.0,0.00021369,2]
[368023295,1750996257749,-874.94,0.00021369,2]
[368023296,1750996257761,-487.96,0.00021369,2]
[368023297,1750996257774,-689.65,0.00021369,2]
[368023298,1750996257785,-460.0,0.00021369,2]
[368023299,1750996257798,-2347.23,0.00021369,2]
[368023300,1750996257810,-151.0,0.00021369,2]
[368023301,1750996257823,-215.0738,0.00021377,2]
[368023302,1750996257835,-151.0,0.000215,4]
[368023303,1750996257848,-151.0,0.00021555,2]
[368023304,1750996257861,-151.0,0.00021555,2]
[368023305,1750996257876,-209.714476,0.00021555,2]
[368023306,1750996257888,-209.714476,0.00021555,2]
[368023307,1750996257898,-6760.62937336,0.00021555,5]
[368023308,1750996257907,-1100.001432,0.0002156,4]
[368023309,1750996257916,-151.0,0.000216,2]
[368023310,1750996257927,-151.0,0.000216,2]
[368023311,1750996257936,-151.0,0.000216,2]
[368023312,1750996257947,-193.527427,0.000216,2]
[368023313,1750996257957,-151.0,0.000216,2]
[368023314,1750996257967,-151.0,0.000216,2]
[368023315,1750996257977,-525.844389,0.000216,2]
[368023316,1750996257990,-525.844389,0.000216,2]
[368023317,1750996258003,-151.0,0.000216,2]
[368023318,1750996258014,-151.0,0.000216,2]
[368023319,1750996258025,-64868.90798801,0.000216,5]
[368023320,1750996258339,-2350.00000001,0.000216,5]
[368023321,1750996258458,-402.57993206,0.00019178,2]
[368023322,1750996258470,-460.0,0.00019178,2]
[368023323,1750996258481,-460.0,0.00019178,2]
[368023324,1750996258490,-1439.64213382,0.000216,5]
[368023325,1750996258836,-9723.19881614,0.000216,5]
[368023326,1750996258847,-151.0,0.00021643,2]
[368023327,1750996258856,-151.0,0.00021643,2]
[368023328,1750996258866,-151.0,0.00021643,2]
[368023329,1750996258876,-151.0,0.00021643,2]
[368023330,1750996258887,-460.0,0.00021643,2]
[368023331,1750996258898,-583.22,0.00021643,2]
[368023332,1750996258910,-151.0,0.00021643,2]
[368023333,1750996258919,-532.07,0.00021643,2]
[368023334,1750996258932,-444.23826953,0.00021643,2]
[368023335,1750996258942,-460.0,0.00021643,2]
[368023336,1750996258951,-151.0,0.00021643,2]
[368023337,1750996258960,-460.0,0.00021643,2]
[368023338,1750996258970,-151.0,0.00021643,2]
[368023339,1750996258980,-460.0,0.00021643,2]
[368023340,1750996258989,-629.94,0.00021643,2]
[368023341,1750996259003,-460.0,0.00021643,2]
[368023342,1750996259014,-460.0,0.00021643,2]
[368023343,1750996259024,-321.61304932,0.00021643,2]
[368023344,1750996259034,-460.0,0.00021643,2]
[368023345,1750996259047,-466.80284933,0.00021643,2]
[368023346,1750996259056,-460.0,0.00021643,2]
[368023347,1750996259064,-1114.1,0.00021643,2]
[368023348,1750996259076,-460.0,0.00021643,2]
[368023349,1750996259086,-460.0,0.00021643,2]
[368023350,1750996259096,-460.0,0.00021643,2]
[368023351,1750996259106,-226.54636466,0.00021643,2]
[368023352,1750996259116,-862.68,0.00021643,2]
[368023353,1750996259125,-460.0,0.00021643,2]
[368023354,1750996259135,-192.22663638,0.00021643,2]
[368023355,1750996259144,-460.0,0.00021643,2]
[368023356,1750996259154,-460.0,0.00021643,2]
[368023357,1750996259164,-460.0,0.00021643,2]
[368023358,1750996259174,-832.18,0.00021643,2]
[368023359,1750996259184,-745.34,0.00021643,2]
[368023360,1750996259193,-819.91439702,0.00021643,2]
[368023361,1750996259482,-460.0,0.00019178,2]
[368023362,1750996259492,-460.0,0.00019178,2]
[368023363,1750996259500,-460.0,0.00019178,2]
[368023364,1750996259510,-460.0,0.00019452,2]
[368023365,1750996259520,-460.0,0.00019452,2]
[368023366,1750996259529,-460.0,0.00019726,2]
[368023367,1750996259539,-477.33,0.0002,2]
[368023368,1750996259548,-779.57560298,0.00021643,2]
[368023369,1750996259557,-460.0,0.00021643,2]
[368023370,1750996259567,-606.6,0.00021643,2]
[368023371,1750996259576,-460.0,0.00021643,2]
[368023372,1750996259585,-460.0,0.00021643,2]
[368023373,1750996259595,-1743.41,0.00021643,2]
[368023374,1750996259604,-1592.32,0.00021643,2]
[368023375,1750996259613,-926.69,0.00021643,2]
[368023376,1750996259623,-581.04,0.00021643,2]
[368023377,1750996259632,-2061.52076185,0.00021643,2]
[368023379,1750996329682,258.372592,0.00013699,2]
[368023385,1750997135135,-1000.0,0.00018999,2]
[368023386,1750997135155,-1000.0,0.00018999,2]
[368023387,1750997135176,-1000.0,0.00019077,2]
[368023388,1750997135196,-34.15440885,0.00019078,2]
[368023418,1750997431914,-277.11677467,0.000189,2]
[368023420,1750997431924,-151.4,0.00019167,2]
[368023422,1750997431934,-107.43113665,0.00019167,2]
[368023426,1750997431968,-192.56886335,0.00019167,2]
[368023427,1750997431977,-1200.0,0.00019167,2]
[368023428,1750997431988,-464.50740665,0.00019168,3]
[368023436,1750997437949,-102.61259335,0.00019168,3]
[368023437,1750997437958,-283.56,0.00019168,3]
[368023438,1750997437967,-179.08008762,0.00019177,2]
[368023439,1750997437976,-460.0,0.00019178,2]
[368023440,1750997437986,-460.0,0.00019178,2]
[368023441,1750997437995,-307.36143173,0.00019178,2]
[368023442,1750997438004,-460.0,0.00019178,2]
[368023444,1750997438014,-333.63538196,0.00019178,2]
[368023446,1750997438023,-447.64003237,0.00019178,2]
[368023448,1750997438032,-460.0,0.00019178,2]
[368023449,1750997438041,-460.0,0.00019178,2]
[368023450,1750997438050,-460.0,0.00019178,2]
[368023451,1750997438060,-461.6084152,0.00019178,2]
[368023452,1750997438069,-460.0,0.00019178,2]
[368023453,1750997438078,-460.0,0.00019178,2]
[368023454,1750997438087,-466.13951261,0.00019178,2]
[368023455,1750997438096,-460.0,0.00019178,2]
[368023456,1750997438105,-460.0,0.00019178,2]
[368023457,1750997438114,-499.55434627,0.00019178,2]
[368023458,1750997438124,-505.45890377,0.00019178,2]
[368023459,1750997438133,-468.24267076,0.00019178,2]
[368023460,1750997438142,-404.99636699,0.00019178,2]
[368023461,1750997438151,-460.0,0.00019178,2]
[368023462,1750997438160,-460.0,0.00019178,2]
[368023463,1750997438169,-460.83812807,0.00019178,2]
[368023464,1750997438178,-290.0,0.00019178,2]
[368023465,1750997438187,-275.02419092,0.00019178,2]
[368023466,1750997438197,-460.0,0.00019178,2]
[368023467,1750997438207,-460.0,0.00019178,2]
[368023468,1750997438216,-443.88759927,0.00019178,2]
[368023469,1750997438226,-460.0,0.00019178,2]
[368023470,1750997438235,-460.0,0.00019178,2]
[368023471,1750997438245,-452.3345428,0.00019178,2]
[368023472,1750997438254,-460.0,0.00019178,2]
[368023473,1750997438263,-452.01401036,0.00019178,2]
[368023474,1750997438272,-241.33062452,0.00019178,2]
[368023475,1750997438283,-460.0,0.00019178,2]
[368023476,1750997438292,-442.30874463,0.00019178,2]
[368023477,1750997438301,-460.0,0.00019178,2]
[368023478,1750997438310,-433.87976963,0.00019178,2]
[368023479,1750997438319,-462.59479522,0.00019178,2]
[368023480,1750997438328,-503.33895302,0.00019178,2]
[368023481,1750997438337,-460.0,0.00019178,2]
[368023482,1750997438347,-436.16138659,0.00019178,2]
[368023483,1750997438356,-452.34029289,0.00019178,2]
[368023484,1750997438366,-460.0,0.00019178,2]
[368023485,1750997438376,-460.0,0.00019178,2]
[368023486,1750997438386,-460.0,0.00019178,2]
[368023487,1750997438395,-460.0,0.00019178,2]
[368023488,1750997438404,-460.0,0.00019178,2]
[368023489,1750997438414,-460.0,0.00019178,2]
[368023490,1750997438423,-460.0,0.00019178,2]
[368023491,1750997438433,-458.22078112,0.00019178,2]
[368023492,1750997438445,-460.0,0.00019178,2]
[368023493,1750997438454,-454.48265313,0.00019178,2]
[368023494,1750997438465,-460.0,0.00019178,2]
[368023495,1750997438475,-460.85015021,0.00019178,2]
[368023496,1750997438484,-460.0,0.00019178,2]
[368023497,1750997438496,-460.0,0.00019178,2]
[368023498,1750997438648,-440.0,0.00019178,2]
[368023499,1750997438657,-463.87843467,0.00019178,2]
[368023500,1750997438667,-460.0,0.00019178,2]
[368023501,1750997438680,-460.0,0.00019178,2]
[368023502,1750997438689,-460.0,0.00019178,2]
[368023503,1750997438698,-460.0,0.00019178,2]
[368023504,1750997438708,-460.0,0.00019178,2]
[368023505,1750997438720,-460.48778507,0.00019178,2]
[368023506,1750997438729,-460.0,0.00019178,2]
[368023507,1750997438738,-460.0,0.00019178,2]
[368023508,1750997438749,-460.0,0.00019178,2]
[368023509,1750997438758,-432.55554105,0.00019178,2]
[368023510,1750997438767,-460.0,0.00019178,2]
[368023511,1750997438776,-460.0,0.00019178,2]
[368023512,1750997438786,-510.59,0.00019178,2]
[368023513,1750997438795,-577.9567405,0.00019178,2]
[368023514,1750997438804,-460.0,0.00019178,2]
[368023515,1750997438813,-460.0,0.00019178,2]
[368023516,1750997438822,-536.46974944,0.00019178,2]
[368023517,1750997438831,-460.0,0.00019178,2]
[368023518,1750997438841,-460.0,0.00019178,2]
[368023519,1750997438850,-460.0,0.00019178,2]
[368023520,1750997438859,-460.0,0.00019178,2]
[368023521,1750997438869,-460.0,0.00019178,2]
[368023522,1750997438878,-460.0,0.00019178,2]
[368023523,1750997438887,-460.0,0.00019178,2]
[368023524,1750997438896,-460.0,0.00019178,2]
[368023525,1750997438906,-407.75375632,0.00019178,2]
[368023526,1750997438915,-460.0,0.00019178,2]
[368023527,1750997438924,-403.83859209,0.00019178,2]
[368023528,1750997438934,-460.0,0.00019178,2]
[368023529,1750997438943,-460.0,0.00019178,2]
[368023530,1750997438952,-460.0,0.00019178,2]
[368023531,1750997438961,-460.0,0.00019178,2]
[368023532,1750997438971,-460.0,0.00019178,2]
[368023533,1750997438981,-401.80699941,0.00019178,2]
[368023534,1750997438991,-423.07257964,0.00019178,2]
[368023535,1750997438999,-406.56788349,0.00019178,2]
[368023536,1750997439009,-460.0,0.00019178,2]
[368023537,1750997439018,-646.54,0.00019178,2]
[368023538,1750997439027,-460.0,0.00019178,2]
[368023539,1750997439035,-468.16851035,0.00019178,2]
[368023540,1750997439044,-460.0,0.00019178,2]
[368023541,1750997439053,-460.0,0.00019178,2]
[368023542,1750997439062,-460.0,0.00019178,2]
[368023543,1750997439071,-460.0,0.00019178,2]
[368023544,1750997439079,-467.06552536,0.00019178,2]
[368023545,1750997439089,-460.0,0.00019178,2]
[368023546,1750997439098,-460.0,0.00019178,2]
[368023547,1750997439107,-460.0,0.00019178,2]
[368023548,1750997439116,-460.0,0.00019178,2]
[368023549,1750997439125,-460.0,0.00019178,2]
[368023550,1750997439134,-437.48988262,0.00019178,2]
[368023551,1750997439142,-460.0,0.00019178,2]
[368023552,1750997439151,-460.0,0.00019178,2]
[368023553,1750997439161,-460.0,0.00019178,2]
[368023554,1750997439171,-460.0,0.00019178,2]
[368023555,1750997439180,-460.0,0.00019178,2]
[368023556,1750997439188,-460.0,0.00019178,2]
[368023557,1750997439197,-460.0,0.00019178,2]
[368023558,1750997439207,-460.0,0.00019178,2]
[368023559,1750997439216,-460.0,0.00019178,2]
[368023560,1750997439225,-460.0,0.00019178,2]
[368023561,1750997439235,-460.0,0.00019178,2]
[368023562,1750997439244,-460.0,0.00019178,2]
[368023563,1750997439253,-460.0,0.00019178,2]
[368023565,1750997439263,-460.0,0.00019178,2]
[368023566,1750997439272,-460.0,0.00019178,2]
[368023567,1750997439281,-433.16174355,0.00019178,2]
[368023568,1750997439290,-460.0,0.00019178,2]
[368023569,1750997439299,-460.0,0.00019178,2]
[368023570,1750997439309,-460.0,0.00019178,2]
[368023571,1750997439319,-460.0,0.00019178,2]
[368023572,1750997439328,-460.0,0.00019178,2]
[368023573,1750997439338,-480.62471395,0.00019178,2]
[368023574,1750997439347,-460.0,0.00019178,2]
[368023575,1750997439356,-500.0,0.00019178,2]
[368023576,1750997439366,-500.0,0.00019178,2]
[368023577,1750997439386,-458.27456262,0.00019178,2]
[368023578,1750997439396,-1144.54,0.00019178,2]
[368023579,1750997439405,-460.0,0.00019178,2]
[368023580,1750997439415,-465.28147782,0.00019178,2]
[368023581,1750997439425,-460.0,0.00019178,2]
[368023582,1750997439435,-253.80761887,0.00019178,2]
[368023583,1750997439444,-460.0,0.00019178,2]
[368023584,1750997439454,-460.0,0.00019178,2]
[368023585,1750997439463,-460.0,0.00019178,2]
[368023586,1750997439473,-556.31425497,0.00019178,2]
[368023588,1750997439483,-502.94639883,0.00019178,2]
[368023589,1750997439493,-460.0,0.00019178,2]
[368023590,1750997439503,-460.0,0.00019178,2]
[368023591,1750997439513,-460.0,0.00019178,2]
[368023592,1750997439523,-460.0,0.00019178,2]
[368023593,1750997439533,-460.0,0.00019178,2]
[368023594,1750997439543,-460.0,0.00019178,2]
[368023595,1750997439553,-460.0,0.00019178,2]
[368023596,1750997439563,-460.0,0.00019178,2]
[368023597,1750997439572,-863.28,0.00019178,2]
[368023598,1750997439582,-460.0,0.00019178,2]
[368023599,1750997439591,-460.0,0.00019178,2]